Cogmind - Beta 14 @@@ ROGUE MODE // 2025.03.19 @ 01:55:17 Player: kat Result: Destroyed by Y-45 Defender with Heavy Assault Rifle Performance ------------- Evolutions (2) 1000 Regions Visited (4) 800 Robots Destroyed (26) 130 Value Destroyed (659) 659 Prototype IDs (4) 80 Alien Tech Used (0) 0 Bonus (0) 0 TOTAL SCORE: 2669 Bonus ------- None Cogmind --------- Core Integrity 0/550 Matter 290/300 Energy 95/100 System Corruption 0% Temperature Cool (9) Movement Core (100) Ox1 Location -8/Materials Parts ------- > --- POWER (1) -------- (None) > --- PROPULSION (4) --- (None) > --- UTILITY (3) ------ Improved Targeting Computer Component Analysis Suite > --- WEAPON (3) ------- Heavy Hammer > --- INVENTORY (5) ---- Sensor Array Signal Interpreter Shield Generator Recalibrator Peak State ------------ > --- POWER ------------ Cooled Ion Engine > --- PROPULSION ------- Aluminum Leg Aluminum Leg > --- UTILITY ---------- Large Storage Unit Improved Targeting Computer Shield Generator > --- WEAPON ----------- Improved Medium Laser Improved Medium Laser Assault Rifle > --- INVENTORY -------- Sensor Array Sensor Array Signal Interpreter Light Armor Plating Light Armor Plating Shield Generator Recalibrator Improved Medium Laser Beam Cannon Heavy Assault Rifle Plasma Cutter Heavy Hammer [Rating: 19] Favorites ----------- Power Light Nuclear Core Engine Light Ion Engine Power Core Light Nuclear Core Propulsion Aluminum Leg Treads Light Treads Leg Aluminum Leg Wheel Wheel Utility Targeting Computer Device Shield Generator Storage Large Storage Unit Processor Targeting Computer Protection Light Armor Plating Weapon Assault Rifle Energy Gun Improved Medium Laser Energy Cannon Beam Cannon Ballistic Gun Assault Rifle Impact Weapon Heavy Hammer Build | -11 -10 -9 -9 -8 ------- Run | Yrd Mat Mat Min Mat Slots Evolved 4 | . . 2 . 2 Power . | . . . . . Propulsion 2 | . . 2 . . Utility 1 | . . . . 1 Weapon 1 | . . . . 1 Parts Attached 37 | 6 9 6 . 16 Power 3 | 1 1 1 . . Engine 2 | 1 . 1 . . Core 1 | . 1 . . . Reactor . | . . . . . Propulsion 11 | 2 3 2 . 4 Treads 2 | 2 . . . . Leg 7 | . 3 2 . 2 Wheel 2 | . . . . 2 Hover . | . . . . . Flight . | . . . . . Utility 11 | 1 2 1 . 7 Device 4 | . . . . 4 Storage 4 | 1 1 1 . 1 Processor 2 | . 1 . . 1 Hackware . | . . . . . Protection 1 | . . . . 1 Artifact . | . . . . . Weapon 12 | 2 3 2 . 5 Energy Gun 6 | 2 . 2 . 2 Energy Cannon 1 | . . . . 1 Ballistic Gun 4 | . 3 . . 1 Ballistic Cannon . | . . . . . Launcher . | . . . . . Special Weapon . | . . . . . Impact Weapon 1 | . . . . 1 Slashing Weapon . | . . . . . Piercing Weapon . | . . . . . Special Melee Weapon . | . . . . . Unidentified Prototypes 2 | . . 2 . . Parts Lost 14 | . . . 1 13 Power 1 | . . . . 1 Propulsion 7 | . . . 1 6 Utility 4 | . . . . 4 Weapon 2 | . . . . 2 Highest Loss Streak 5 | . . . 1 5 To Critical Strikes . | . . . . . Average Slot Usage (%) 90 | . 96 100 88 66 Engine 4 | . 6 . 11 6 Core 6 | . 7 10 . . Treads 1 | . 3 . . . Leg 28 | . 24 44 33 11 Device 1 | . . . . 5 Storage 11 | . 14 11 11 6 Processor 10 | . 10 11 11 9 Energy Gun 8 | . 5 8 11 12 Ballistic Gun 15 | . 22 13 11 5 Peak Build Rating 19 | 6 10 15 15 19 Average Rating 11 | 4 8 13 14 15 On Entrance 8 | . 6 10 15 13 Naked Turns . | . . . . . Heaviest Build 40 | 10 18 33 33 40 Greatest Support 40 | 40 40 40 40 20 Greatest Overweight (x) 3 | . . . 1 3 Average Overweight (x) . | . . . . . Largest Inventory Capacity 15 | 8 10 15 15 15 Average Capacity 11 | 6 9 14 15 11 Most Carried 15 | 5 10 15 14 13 Average Carried 9 | 2 8 12 14 8 Final Capacity 15 | 8 10 15 15 5 Final Carried 14 | 4 10 14 14 4 Class Distribution -------------------- 85% | Mutant 14% | Gunner Dominant Class ---------------- Mutant | -10/Materials Mutant | -9/Materials Mutant | -9/Mines Gunner | -8/Materials Resources | -11 -10 -9 -9 -8 ----------- Run | Yrd Mat Mat Min Mat Matter Collected 686 | 203 166 164 . 153 Remotely . | . . . . . Salvage Created 1077 | . 228 372 . 477 Parts 59 | . 15 20 . 24 Haulers Intercepted 4 | . 1 2 . 1 Recyclers Shooed . | . . . . . Parts Field Recycled . | . . . . . Retrieved Matter . | . . . . . Parts Self-Destructed . | . . . . . Prevented . | . . . . . Kills | -11 -10 -9 -9 -8 ------- Run | Yrd Mat Mat Min Mat Combat Hostiles Destroyed 17 | . 6 5 . 6 Guns 14 | . 6 5 . 3 Cannons 1 | . . . . 1 Classes Destroyed 9 | . 4 3 . 2 Builder 2 | . . . . 2 Hauler 4 | . 1 2 . 1 Recycler 1 | . . . . 1 Mechanic 1 | . 1 . . . Watcher 1 | . . 1 . . Swarmer 3 | . 3 . . . Grunt 10 | . 3 2 . 5 Brawler 1 | . . 1 . . Sentry 3 | . . 2 . 1 Best Kill Streak 4 | . 4 3 . 3 Combat Bots Only 3 | . 3 3 . 2 Max Kills in Single Turn 2 | . 1 1 . 2 Gunslinging . | . . . . . Exploded . | . . . . . Melee . | . . . . . Uniques/NPCs Destroyed . | . . . . . Combat | -11 -10 -9 -9 -8 -------- Run | Yrd Mat Mat Min Mat Hostile Shots Fired 235 | . 21 31 32 151 Missed 57 | . 6 9 6 36 Damage Taken 2225 | . 157 287 221 1560 Core 663 | . 54 34 17 558 Absorbed by Shields 54 | . . . . 54 Core Remaining (%) 88 | 100 78 . 87 . Volleys Fired 80 | . 24 29 . 27 Largest 3 | . 2 2 . 3 Hottest 139 | . 80 76 . 139 Shots Fired 173 | . 48 58 . 67 Gun 164 | . 48 58 . 58 Cannon 9 | . . . . 9 Launcher . | . . . . . Special . | . . . . . Kinetic 77 | . 19 42 . 16 Thermal 96 | . 29 16 . 51 Explosive . | . . . . . Electromagnetic . | . . . . . Robot Hit Streak 23 | . 7 23 . 11 Robot Miss Streak 4 | . 4 3 . 2 Penetration Max . | . . . . . Secondary Targets 4 | . 1 2 . 1 Max Gunslinging Chain 1 | . 1 1 . 1 Shots Hit Robots 125 | . 34 43 . 48 Core Hits 43 | . 14 14 . 15 Critical Kills . | . . . . . Critical Parts Destroyed 2 | . . 1 . 1 Critical Strikes 8 | . . 3 . 5 Burn 6 | . . 2 . 4 Destroy 2 | . . 1 . 1 Melee Attacks 3 | . . . . 3 Impact 3 | . . . . 3 Slashing . | . . . . . Piercing . | . . . . . Sneak Attacks . | . . . . . Combat Hostiles . | . . . . . Follow-up Attacks . | . . . . . Damage Inflicted 1777 | . 334 596 . 847 Guns 1570 | . 334 596 . 640 Cannons 125 | . . . . 125 Explosions . | . . . . . Melee 82 | . . . . 82 Ramming . | . . . . . Kinetic 617 | . 78 336 . 203 Thermal 1078 | . 256 260 . 562 Explosive . | . . . . . Electromagnetic . | . . . . . Impact 82 | . . . . 82 Slashing . | . . . . . Piercing . | . . . . . Highest Corruption 2 | . . 2 2 . Average Corruption 2 | . . 2 2 . Corruption Purged . | . . . . . Corruption Blocked . | . . . . . Effects 5 | . . 4 1 . Matter Fused 2 | . . 2 . . Heat Flow Errors 2 | . . 2 . . Parts Rejected 1 | . . . 1 . Overload Shots . | . . . . . Overflow Damage 13 | . . . . 13 Projectiles . | . . . . . Explosions . | . . . . . Melee 13 | . . . . 13 Knockbacks 1 | . . . . 1 Impact 1 | . . . . 1 Kinetic . | . . . . . Secondary . | . . . . . Self-Inflicted Damage . | . . . . . Shots . | . . . . . Rammed . | . . . . . Targets Rammed . | . . . . . Kicked . | . . . . . Crushed . | . . . . . Highest Temperature 359 | . 180 287 . 359 Average Temperature 120 | . 56 133 . 142 Received Heat Transfer 1013 | . 72 141 33 767 Effects 8 | . . 3 . 5 Energy Bleed 1 | . . . . 1 Interference 6 | . . 3 . 3 Damage (minor) 1 | . . . . 1 Siege Activations . | . . . . . Robots Corrupted . | . . . . . Combat Hostiles . | . . . . . Parts Fried . | . . . . . Impact Corruptions 1 | . . . . 1 Robots Melted 2 | . . . . 2 Combat Hostiles 2 | . . . . 2 Parts Melted 7 | . . 1 . 6 Heat Transferred 2795 | . 575 703 . 1517 Parts Sabotaged . | . . . . . Parts Stolen . | . . . . . Parts Stripped . | . . . . . Power Chain Reactions . | . . . . . Alert | -11 -10 -9 -9 -8 ------- Run | Yrd Mat Mat Min Mat Peak Influence 221 | . 171 221 42 187 Initial 27 | . . 10 27 12 Average 71 | . 63 92 38 69 Maximum Alert Level 1 | . . 1 . . Low Security (%) 95 | 100 100 86 100 100 Level 1 4 | . . 13 . . Level 2 . | . . . . . Level 3 . | . . . . . Level 4 . | . . . . . Level 5 . | . . . . . High Security . | . . . . . Max Security . | . . . . . Squads Dispatched . | . . . . . Investigation . | . . . . . Extermination . | . . . . . Reinforcement . | . . . . . Assault . | . . . . . Garrison . | . . . . . Intercept . | . . . . . Searches Triggered . | . . . . . Construction Impeded . | . . . . . Haulers Reinforced . | . . . . . Active Scanning Responses . | . . . . . Cargo Convoy Interrupts . | . . . . . Stealth | -11 -10 -9 -9 -8 --------- Run | Yrd Mat Mat Min Mat Distress Signals 5 | . 2 1 . 2 Communications Jammed . | . . . . . Distress Signals . | . . . . . Times Spotted 47 | . 9 11 7 20 Peak Tracking Total 11 | . 4 3 7 11 Tactical Retreats 4 | . 1 2 . 1 Traps | -11 -10 -9 -9 -8 ------- Run | Yrd Mat Mat Min Mat Traps Triggered . | . . . . . Indirectly . | . . . . . Trap Hack Attempts . | . . . . . Triggered . | . . . . . Disarmed . | . . . . . Reprogrammed . | . . . . . Reused . | . . . . . Traps Extracted . | . . . . . Installed . | . . . . . Triggered . | . . . . . Machines | -11 -10 -9 -9 -8 ---------- Run | Yrd Mat Mat Min Mat Machines Disabled . | . . . . . Max in Single Turn . | . . . . . Machines Repaired . | . . . . . Machines Dismantled . | . . . . . Machines Sabotaged . | . . . . . Overloaded Fab Kills . | . . . . . Hacking | -11 -10 -9 -9 -8 --------- Run | Yrd Mat Mat Min Mat Machines Accessed 13 | . 7 5 . 1 Terminals 11 | . 6 4 . 1 Fabricators . | . . . . . Repair Stations . | . . . . . Recycling Units 2 | . 1 1 . . Scanalyzers . | . . . . . Garrison Access . | . . . . . Total Hacks 29 | . 16 12 . 1 Successful 21 | . 12 8 . 1 Failed 8 | . 4 4 . . Catastrophic 1 | . . 1 . . Database Lockouts . | . . . . . Manual . | . . . . . Terminals 22 | . 12 9 . 1 Fabricators . | . . . . . Repair Stations . | . . . . . Recycling Units 7 | . 4 3 . . Scanalyzers . | . . . . . Garrison Access . | . . . . . Terminal Hacks 17 | . 9 7 . 1 Robot Analysis 2 | . 2 . . . Prototype ID Bank 1 | . . 1 . . Level Access Points 1 | . 1 . . . Alert Level 2 | . 1 1 . . Locate Traps 1 | . . 1 . . Dispatch Records 1 | . 1 . . . Maintenance Status 2 | . 1 1 . . Surveillance Status 1 | . . 1 . . Investigation Status 1 | . . 1 . . Assault Status 1 | . 1 . . . Hauler Manifests 2 | . 1 1 . . Registered Components 2 | . 1 . . 1 Fabricator Hacks . | . . . . . Repair Station Hacks . | . . . . . Recycling Unit Hacks 4 | . 3 1 . . Process 1 | . 1 . . . Report Inventory 3 | . 2 1 . . Scanalyzer . | . . . . . Garrison Access Hacks . | . . . . . Unauthorized Hacks . | . . . . . Terminals . | . . . . . Fabricators . | . . . . . Repair Stations . | . . . . . Recycling Units . | . . . . . Scanalyzers . | . . . . . Garrison Access . | . . . . . Data Cores Recovered . | . . . . . Used . | . . . . . Hacking Detections 8 | . 5 3 . . Full Trace Events . | . . . . . Feedback Events . | . . . . . Feedback Blocked . | . . . . . Robot Schematics Acquired . | . . . . . Robots Built . | . . . . . Authchips . | . . . . . Time . | . . . . . Total Robot Build Rating . | . . . . . Part Schematics Acquired . | . . . . . Parts Built . | . . . . . Authchips . | . . . . . Time . | . . . . . Total Part Build Rating . | . . . . . Parts Repaired . | . . . . . Time . | . . . . . Parts Recycled . | . . . . . Recycled Matter 716 | . 716 . . . Retrieved Matter . | . . . . . Retrieved Components . | . . . . . Parts Scanalyzed . | . . . . . Part Schematics Acquired . | . . . . . Parts Damaged . | . . . . . Bothacking | -11 -10 -9 -9 -8 ------------ Run | Yrd Mat Mat Min Mat Used RIF Installer . | . . . . . Robots Hacked . | . . . . . Non-combat . | . . . . . Combat . | . . . . . Robot Hacks Applied . | . . . . . Relay Couplers Released . | . . . . . Fabnet Peak Effective % . | . . . . . Robots Rewired . | . . . . . Allies Hacked . | . . . . . Hacks Repelled . | . . . . . Allies | -11 -10 -9 -9 -8 -------- Run | Yrd Mat Mat Min Mat Total Allies . | . . . . . Largest Group . | . . . . . Highest-Rated Group . | . . . . . Highest-Rated Ally . | . . . . . Total Orders . | . . . . . Ally Attacks . | . . . . . Total Damage . | . . . . . Kills . | . . . . . Allies Corrupted . | . . . . . Allies Melted . | . . . . . Intel | -11 -10 -9 -9 -8 ------- Run | Yrd Mat Mat Min Mat Robot Analysis Total 2 | . 2 . . . Derelict Logs Recovered . | . . . . . Drone Launches . | . . . . . Drone Recoveries . | . . . . . Exploration | -11 -10 -9 -9 -8 ------------- Run | Yrd Mat Mat Min Mat Turns Passed 1769 | 64 731 558 16 400 Spaces Moved 1051 | 41 486 316 13 195 Core 35 | 15 . . . 20 Treads 62 | 26 36 . . . Legs 876 | . 450 316 13 97 Wheels 78 | . . . . 78 Hover . | . . . . . Flight . | . . . . . Fastest Speed 50 | 50 120 120 120 50 Average Speed 125 | 119 122 120 136 138 Slowest Speed 330 | 160 160 120 190 330 Overloaded Moves . | . . . . . Propulsion Burnouts . | . . . . . Robots Hopped . | . . . . . Cave-ins Triggered . | . . . . . Exploration Rate (%) 31 | 5 87 32 8 26 Regions Visited 4 Branch Regions 1 Pre-discovered Areas . | . . . . . Known Exits Taken 1 | . 1 . . . Unknown Exits Taken 3 | 1 . 1 1 . Scrap Searched . | . . . . . Spaces Dug . | . . . . . Terrain Destroyed . | . . . . . Melee . | . . . . . Projectile . | . . . . . AOE . | . . . . . Terrain Rammed . | . . . . . Walls Destroyed . | . . . . . Machines Disabled . | . . . . . Actions | -11 -10 -9 -9 -8 --------- Run | Yrd Mat Mat Min Mat Total 1349 | 56 576 441 12 264 Wait 117 | . 32 74 . 11 Move 1047 | 40 485 315 12 195 Hop . | . . . . . Pick Up 41 | 10 16 11 . 4 Fast Attach 5 | . . 1 . 4 Attach 18 | 6 1 3 . 8 Detach . | . . . . . Swap 14 | . 8 2 . 4 Drop 24 | . 10 6 . 8 Fire 80 | . 24 29 . 27 Melee 3 | . . . . 3 Ram . | . . . . . Kick . | . . . . . Crush . | . . . . . Escape Stasis . | . . . . . Rewire . | . . . . . Trap . | . . . . . Miscellaneous . | . . . . . Route ------- -11/Scrapyard -10/Materials (discovered 4 exits: *Mat x3 / [*Min]) -9/Materials (discovered 2 exits: *Mat / [*Min]) -9/Mines -8/Materials History --------- Turn | Location | Event 12 | -11/Scrapyard | Discovered new exit (range 16) 65 | -11/Scrapyard | Entered Materials 219 | -10/Materials | Discovered new exit (range 12) 350 | -10/Materials | Build established: Mutant 462 | -10/Materials | Discovered new exit (range 15) 631 | -10/Materials | Discovered new exit (range 16) 697 | -10/Materials | Identified exit to Materials 796 | -10/Materials | Entered another Materials area 796 | -9/Materials | Evolved 2 slots: Propulsion x2 994 | -9/Materials | Discovered new exit (range 16) 1339 | -9/Materials | Discovered new exit (range 14) 1354 | -9/Materials | Entered Mines 1359 | -9/Mines | Discovered new exit (range 9) 1370 | -9/Mines | Entered Materials 1370 | -8/Materials | Evolved 2 slots: Utility x1, Weapon x1 1566 | -8/Materials | Lost 4 parts (2n1u1w) 1705 | -8/Materials | Lost 5 parts (1p2n2u) 1760 | -8/Materials | Core integrity fell below 50% 1768 | -8/Materials | Core integrity fell below 20% 1770 | -8/Materials | Destroyed by Y-45 Defender with Heavy Assault Rifle Last Messages --------------- 01750_ S-10 Pest unfolds itself. 01754_ Wheel destroyed. 01755_ Imp. Medium Laser destroyed. 01755_ U-05 Engineer works on Material Compactor. 01755_ Wheel destroyed. 01758_ Critical hit (Burn: +37). 01760_ U-05 Engineer works on Material Compactor. 01762_ K-01 Serf collects debris. 01764_ Critical hit (Burn: +37). 01765_ U-05 Engineer works on Material Compactor. 01765_ Destroyed Imp. Heat Sink. 01765_ G-47 Trooper system corrupted by crushing effect. 01765_ G-47 Trooper knocked back. 01766_ K-01 Serf collects debris. 01766_ Imp. Terrain Scanner destroyed. 01766_ U-05 Engineer works on Material Compactor. 01769_ K-01 Serf collects debris. Map ----- +----------------------------------------------------+ | ?????????????????????????????????????????????????? | | ?????????????????????????????????????????????????? | | ?????????????????????????????????????????????????? | | ?????????????????????????????????????????????????? | | ?????????????????????????????????????????????????? | | ?????????????????????????????????????????????????? | | ?????????????????????????????????????????????????? | | ?????????????????????????????????????????????????? | | ???????????????????" ???????????????????????????? | | ??????????????????" ???????????????????????????? | | ?????????????????? " #??????????????????????????? | | ????????????????? "%"#??????????????????????????? | | ???????????????? " "??????????????????????????? | | ??????????????? T??????????????????????????? | | ??????????????! "??????????????????????????? | | ????????????#?? #??????????????????????????? | | ???????????????? ##?????????????????????????? | | ????????????????? #???#?????????????????????? | | ???????????????? ? #?????????????????????????? | | ??????????????????? #?????????????#???????????? | | ???????????????????# #?????????????????????????? | | ???????????????????# #?#???????????????????????? | | ???????????????????# #?????????????? ??????????? | | ???????????????????# ##########+####???????????? | | ????????? ??? ?????#s ss g #???????????? | | ???????????????????# s @ g #???????????? | | ???????????????????# Y u< #???????????? | | ???????????????????# ####g << #???????????? | | ??????????? ???????# #??# <